[Event "Niedersachsen-ch B 2024"]
[Site "Verden Aller"]
[Date "2024.01.05"]
[Round "4.33"]
[White "Stockburger, Alexander"]
[Black "Steven, Matthias"]
[Result "1-0"]
[ECO "B34"]
[WhiteElo "1573"]
[BlackElo "1284"]
[Annotator "NA RC"]
[PlyCount "45"]
[EventDate "2024.01.01"]
[EventType "swiss"]
[EventCountry "GER"]
[SourceTitle "playchess.com"]
[Source "ChessBase"]
[SourceQuality "1"]
[TimeControl "40/5400+30:1800+30"]

1. e4 {[%emt 0:00:09]} c5 {[%emt 0:02:14]} 2. Nf3 {[%emt 0:00:06]} Nc6 {[%emt 0:00:05]} 3. d4 {[%emt 0:00:15]} cxd4 {[%emt 0:00:05]} 4. Nxd4 {[%emt 0:00:06]} g6 {[%emt 0:00:04]} 5. Nc3 {[%emt 0:00:21]} Bg7 {[%emt 0:00:05]} 6. Be3 {[%emt 0:00:18]} Nf6 {[%emt 0:00:10]} 7. Bd3 {[%emt 0:02:40]} O-O {[%emt 0:00:11]} 8. Qd2 {[%emt 0:01:34]} d5 {[%emt 0:11:17]} 9. exd5 {[%emt 0:04:50]} Nxd5 {[%emt 0:00:08]} 10. Nf3 {[%emt 0:01:38]} Nxe3 {[%emt 0:01:04]} 11. Qxe3 {[%emt 0:00:40]} Qc7 {[%emt 0:06:12]} 12. O-O {[%emt 0:04:22]} Be6 {[%emt 0:06:56]} 13. Nb5 {[%emt 0:04:39]} Qc8 {[%emt 0:02:23]} 14. c3 {[%emt 0:02:35]} Re8 {[%emt 0:08:18]} 15. Qf4 {[%emt 0:03:25]} Rd8 {[%emt 0:02:14]} 16. Bc2 {[%emt 0:01:06]} a6 {[%emt 0:01:34]} 17. Nc7 {[%emt 0:00:48]} Rb8 {[%emt 0:00:29]} 18. Rfe1 {[%emt 0:03:23]} Bg4 {[%emt 0:06:51]} 19. Ng5 {[%emt 0:08:02]} Bf5 {[%emt 0:03:25]} 20. Bb3 {[%emt 0:10:07]} e6 {[%emt 0:05:04]} 21. Ncxe6 {[%emt 0:05:28]} Rd7 {[%emt 0:14:56]} 22. Nxg7 {[%emt 0:04:37]} Kxg7 {[%emt 0:00:23]} 23. g4 {[%emt 0:02:18]} 1-0

[Event "Niedersachsen-ch B 2024"]
[Site "Verden Aller"]
[Date "2024.01.05"]
[Round "4.34"]
[White "Middelberg, Simon"]
[Black "Tenninger, Joerg"]
[Result "1-0"]
[ECO "B21"]
[WhiteElo "1401"]
[BlackElo "1508"]
[Annotator "NA RC"]
[PlyCount "37"]
[EventDate "2024.01.01"]
[EventType "swiss"]
[EventCountry "GER"]
[SourceTitle "playchess.com"]
[Source "ChessBase"]
[SourceQuality "1"]
[TimeControl "40/5400+30:1800+30"]

1. e4 {[%emt 0:00:07]} e6 {[%emt 0:00:09]} 2. Nf3 {[%emt 0:00:08]} c5 {[%emt 0:00:15]} 3. d4 {[%emt 0:00:27]} cxd4 {[%emt 0:00:51]} 4. c3 {[%emt 0:00:08]} dxc3 {[%emt 0:01:32]} 5. Nxc3 {[%emt 0:00:03]} Nc6 {[%emt 0:01:20]} 6. Bf4 {[%emt 0:00:20]} a6 {[%emt 0:00:45]} 7. Bc4 {[%emt 0:03:17]} Bc5 {[%emt 0:06:19]} 8. e5 {[%emt 0:10:46]} Qb6 {[%emt 0:02:48]} 9. O-O {[%emt 0:01:03]} Nge7 {[%emt 0:01:08]} 10. a3 {[%emt 0:08:02]} Ng6 {[%emt 0:02:09]} 11. Bg3 {[%emt 0:03:18]} Be7 {[%emt 0:03:14]} 12. b4 {[%emt 0:08:22]} O-O {[%emt 0:02:41]} 13. Qd3 {[%emt 0:12:02]} Rd8 {[%emt 0:01:16]} 14. Ne4 {[%emt 0:08:34]} f5 {[%emt 0:13:20]} 15. exf6 {[%emt 0:08:13]} gxf6 {[%emt 0:01:12]} 16. Nd6 {[%emt 0:04:35]} Nce5 {[%emt 0:03:58]} 17. Nxe5 {[%emt 0:05:55]} Nxe5 {[%emt 0:03:51]} 18. Bxe5 {[%emt 0:00:36]} fxe5 {[%emt 0:00:10]} 19. Qg3+ {[%emt 0:00:21]} 1-0

[Event "Niedersachsen-ch B 2024"]
[Site "Verden Aller"]
[Date "2024.01.05"]
[Round "4.35"]
[White "Rinke, Alexander"]
[Black "Margaryan, Venera"]
[Result "1/2-1/2"]
[ECO "C10"]
[WhiteElo "1296"]
[BlackElo "1473"]
[Annotator "NA"]
[PlyCount "85"]
[EventDate "2024.01.01"]
[EventType "swiss"]
[EventCountry "GER"]
[SourceTitle "playchess.com"]
[Source "ChessBase"]
[SourceQuality "1"]
[TimeControl "40/5400+30:1800+30"]

1. e4 {[%emt 0:00:02]} e6 {[%emt 0:00:04]} 2. d4 {[%emt 0:00:05]} d5 {[%emt 0:00:06]} 3. Nd2 {[%emt 0:00:06]} dxe4 {[%emt 0:00:13]} 4. Nxe4 {[%emt 0:00:05]} Nd7 {[%emt 0:00:11]} 5. Nf3 {[%emt 0:00:10]} Ngf6 {[%emt 0:00:04]} 6. Nxf6+ {[%emt 0:00:09]} Nxf6 {[%emt 0:00:06]} 7. Be3 {[%emt 0:00:08]} Be7 {[%emt 0:01:12]} 8. Bd3 {[%emt 0:00:42]} O-O {[%emt 0:00:29]} 9. Qe2 {[%emt 0:01:28]} Bb4+ {[%emt 0:02:07]} 10. c3 {[%emt 0:03:02]} Be7 {[%emt 0:01:24]} 11. O-O-O {[%emt 0:02:12]} a5 {[%emt 0:02:10]} 12. Ne5 {[%emt 0:08:18]} a4 {[%emt 0:07:12]} 13. a3 {[%emt 0:02:03]} c6 {[%emt 0:05:50]} 14. g4 {[%emt 0:10:15]} Nd5 {[%emt 0:01:36]} 15. Bd2 {[%emt 0:04:11]} Bg5 {[%emt 0:23:28]} 16. Bc2 {[%emt 0:11:54]} Be7 {[%emt 0:04:30]} 17. Rhg1 {[%emt 0:06:18]} f6 {[%emt 0:01:55]} 18. Qd3 {[%emt 0:07:03]} f5 {[%emt 0:04:32]} 19. gxf5 {[%emt 0:08:03]} exf5 {[%emt 0:00:25]} 20. Qg3 {[%emt 0:02:54]} Bf6 {[%emt 0:01:32]} 21. Bh6 {[%emt 0:07:48]} Qe7 {[%emt 0:02:07]} 22. Rg2 {[%emt 0:03:23]} Re8 {[%emt 0:08:24]} 23. Rdg1 {[%emt 0:03:34]} Bxe5 {[%emt 0:02:16]} 24. dxe5 {[%emt 0:02:19]} g6 {[%emt 0:01:32]} 25. f4 {[%emt 0:00:59]} Be6 {[%emt 0:02:31]} 26. h4 {[%emt 0:02:49]} Kf7 {[%emt 0:05:01]} 27. h5 {[%emt 0:04:51]} Rg8 {[%emt 0:02:02]} 28. hxg6+ {[%emt 0:01:19]} hxg6 {[%emt 0:02:08]} 29. Qh3 {[%emt 0:02:18]} Qc5 {[%emt 0:03:24]} 30. Qd3 {[%emt 0:04:06]} Qe3+ {[%emt 0:04:12]} 31. Qxe3 {[%emt 0:00:16]} Nxe3 {[%emt 0:00:12]} 32. Rg3 {[%emt 0:00:27]} Nxc2 {[%emt 0:02:12]} 33. Kxc2 {[%emt 0:00:11]} Rad8 {[%emt 0:01:12]} 34. Bg5 {[%emt 0:00:14]} Bb3+ {[%emt 0:01:04]} 35. Kc1 {[%emt 0:00:30]} Rd7 {[%emt 0:02:17]} 36. R3g2 {[%emt 0:00:13]} Rd3 {[%emt 0:02:18]} 37. Rd2 {[%emt 0:01:00]} Rxd2 {[%emt 0:01:07]} 38. Kxd2 {[%emt 0:00:06]} Rh8 {[%emt 0:01:35]} 39. Rg2 {[%emt 0:01:15]} Rh1 {[%emt 0:01:50]} 40. Kd3 {[%emt 0:00:27]} Rd1+ {[%emt 0:02:06]} 41. Rd2 {[%emt 0:30:08]} Bc4+ {[%emt 0:02:31]} 42. Kc2 {[%emt 0:00:00]} Bb3+ {[%emt 0:00:51]} 43. Kd3 {[%emt 0:00:00]} 1/2-1/2

[Event "Niedersachsen-ch B 2024"]
[Site "Verden Aller"]
[Date "2024.01.05"]
[Round "4.36"]
[White "Heckl, Philipp"]
[Black "Sauer, Ben"]
[Result "1-0"]
[ECO "A04"]
[WhiteElo "1580"]
[BlackElo "1427"]
[Annotator "NA"]
[PlyCount "164"]
[EventDate "2024.01.01"]
[EventType "swiss"]
[EventCountry "GER"]
[SourceTitle "playchess.com"]
[Source "ChessBase"]
[SourceQuality "1"]
[TimeControl "40/5400+30:1800+30"]

1. e4 {[%emt 0:00:55]} c5 {[%emt 0:00:41]} 2. Nf3 {[%emt 0:03:15]} Nc6 {[%emt 0:00:07]} 3. d3 {[%emt 0:05:17]} d6 {[%emt 0:03:06]} 4. g3 {[%emt 0:00:55]} g6 {[%emt 0:00:49]} 5. Bg2 {[%emt 0:00:12]} Bg7 {[%emt 0:01:13]} 6. O-O {[%emt 0:00:10]} e5 {[%emt 0:00:35]} 7. Be3 {[%emt 0:06:22]} Nge7 {[%emt 0:01:27]} 8. Qd2 {[%emt 0:07:55]} O-O {[%emt 0:01:07]} 9. Bh6 {[%emt 0:00:08]} Bd7 {[%emt 0:01:32]} 10. Bxg7 {[%emt 0:00:32]} Kxg7 {[%emt 0:00:18]} 11. Nc3 {[%emt 0:04:45]} Kh8 {[%emt 0:01:55]} 12. Qh6 {[%emt 0:02:59]} Ng8 {[%emt 0:02:53]} 13. Qd2 {[%emt 0:03:18]} Nge7 {[%emt 0:01:13]} 14. Qh6 {[%emt 0:00:16]} Ng8 {[%emt 0:01:03]} 15. Qd2 {[%emt 0:00:11]} Nge7 {[%emt 0:06:43]} 16. Nd5 {[%emt 0:06:30]} Nxd5 {[%emt 0:00:39]} 17. exd5 {[%emt 0:00:14]} Ne7 {[%emt 0:00:16]} 18. c4 {[%emt 0:01:22]} f5 {[%emt 0:01:20]} 19. Ng5 {[%emt 0:03:58]} Ng8 {[%emt 0:04:00]} 20. f4 {[%emt 0:02:25]} exf4 {[%emt 0:08:56]} 21. Qxf4 {[%emt 0:02:45]} Qf6 {[%emt 0:01:58]} 22. Rf2 {[%emt 0:03:59]} h6 {[%emt 0:01:42]} 23. Nf3 {[%emt 0:06:18]} g5 {[%emt 0:02:02]} 24. Qd2 {[%emt 0:00:25]} Ne7 {[%emt 0:02:03]} 25. Re1 {[%emt 0:01:32]} Rae8 {[%emt 0:04:02]} 26. Rfe2 {[%emt 0:03:11]} Ng8 {[%emt 0:05:28]} 27. Qc3 {[%emt 0:09:47]} Qxc3 {[%emt 0:01:08]} 28. bxc3 {[%emt 0:00:13]} Rxe2 {[%emt 0:00:20]} 29. Rxe2 {[%emt 0:00:10]} Re8 {[%emt 0:01:04]} 30. Kf2 {[%emt 0:04:05]} Kg7 {[%emt 0:00:29]} 31. Rxe8 {[%emt 0:03:18]} Bxe8 {[%emt 0:00:12]} 32. Nd2 {[%emt 0:02:02]} Nf6 {[%emt 0:01:37]} 33. h3 {[%emt 0:00:13]} Bg6 {[%emt 0:01:09]} 34. Bf3 {[%emt 0:03:31]} Nd7 {[%emt 0:01:42]} 35. Ke3 {[%emt 0:01:54]} Kf6 {[%emt 0:00:43]} 36. Bd1 {[%emt 0:01:16]} b6 {[%emt 0:02:35]} 37. d4 {[%emt 0:01:30]} Ke7 {[%emt 0:02:18]} 38. Be2 {[%emt 0:02:18]} Kd8 {[%emt 0:01:25]} 39. Bd3 {[%emt 0:00:49]} Ke7 {[%emt 0:00:44]} 40. Ke2 {[%emt 0:04:04]} Kf6 {[%emt 0:00:57]} 41. Nb3 {[%emt 0:31:41]} Kf7 {[%emt 0:31:29]} 42. dxc5 {[%emt 0:01:37]} Nxc5 {[%emt 0:01:07]} 43. Nd4 {[%emt 0:01:01]} Nxd3 {[%emt 0:01:53]} 44. Kxd3 {[%emt 0:00:15]} a6 {[%emt 0:04:25]} 45. Ke3 {[%emt 0:00:11]} f4+ {[%emt 0:02:29]} 46. gxf4 {[%emt 0:01:51]} gxf4+ {[%emt 0:00:18]} 47. Kxf4 {[%emt 0:00:58]} Bd3 {[%emt 0:00:39]} 48. Nf5 {[%emt 0:00:24]} Bb1 {[%emt 0:03:28]} 49. a3 {[%emt 0:01:25]} Ba2 {[%emt 0:00:44]} 50. Ke3 {[%emt 0:00:34]} Kf6 {[%emt 0:00:18]} 51. Nxh6 {[%emt 0:00:00]} Bxc4 {[%emt 0:00:00]} 52. Kd4 {[%emt 0:00:00]} Bf1 {[%emt 0:00:00]} 53. Ng4+ {[%emt 0:00:00]} Kg5 {[%emt 0:00:00]} 54. Nf2 {[%emt 0:00:00]} Kf4 {[%emt 0:00:00]} 55. Ne4 {[%emt 0:00:00]} Bxh3 {[%emt 0:00:00]} 56. Nxd6 {[%emt 0:00:00]} Bd7 {[%emt 0:00:00]} 57. Nc4 {[%emt 0:00:00]} b5 {[%emt 0:00:00]} 58. Nb6 {[%emt 0:00:00]} Be8 {[%emt 0:00:00]} 59. d6 {[%emt 0:00:00]} Kf5 {[%emt 0:00:00]} 60. d7 {[%emt 0:00:00]} Bxd7 {[%emt 0:00:00]} 61. Nxd7 {[%emt 0:00:00]} Ke6 {[%emt 0:00:00]} 62. Nc5+ {[%emt 0:00:00]} Kd6 {[%emt 0:31:09]} 63. Nxa6 {[%emt 0:00:00]} Kc6 {[%emt 0:00:00]} 64. Nb4+ {[%emt 0:00:00]} Kd6 {[%emt 0:00:00]} 65. Nd3 {[%emt 0:00:00]} Kc6 {[%emt 0:00:00]} 66. Ke5 {[%emt 0:00:00]} Kb6 {[%emt 0:00:00]} 67. Kd6 {[%emt 0:00:00]} Ka5 {[%emt 0:00:00]} 68. Kc6 {[%emt 0:00:00]} Ka6 {[%emt 0:00:00]} 69. Nb4+ {[%emt 0:00:00]} Ka5 {[%emt 0:00:00]} 70. Nd5 {[%emt 0:00:00]} Ka6 {[%emt 0:00:00]} 71. Nc7+ {[%emt 0:00:00]} Ka7 {[%emt 0:00:00]} 72. Nxb5+ {[%emt 0:00:00]} Ka8 {[%emt 0:00:00]} 73. Nd4 {[%emt 0:00:00]} Kb8 {[%emt 0:00:00]} 74. Kd7 {[%emt 0:00:00]} Kb7 {[%emt 0:00:00]} 75. c4 {[%emt 0:00:00]} Kb6 {[%emt 0:00:00]} 76. Nb3 {[%emt 0:00:00]} Kb7 {[%emt 0:00:00]} 77. c5 {[%emt 0:00:00]} Kb8 {[%emt 0:00:00]} 78. c6 {[%emt 0:00:00]} Ka8 {[%emt 0:00:00]} 79. c7 {[%emt 0:00:00]} Kb7 {[%emt 0:00:00]} 80. c8=Q+ {[%emt 0:00:00]} Ka7 {[%emt 0:00:00]} 81. Qc5+ {[%emt 0:00:00]} Ka6 {[%emt 0:00:00]} 82. Qb4 {[%emt 0:00:00]} Ka7 {[%emt 0:00:00]} 1-0

[Event "Niedersachsen-ch B 2024"]
[Site "Verden Aller"]
[Date "2024.01.06"]
[Round "5.1"]
[White "Rossberg, Jonathan"]
[Black "Schoene, Finn"]
[Result "1-0"]
[ECO "B22"]
[WhiteElo "1818"]
[BlackElo "1626"]
[Annotator "NA RC"]
[PlyCount "117"]
[EventDate "2024.01.01"]
[EventType "swiss"]
[EventCountry "GER"]
[SourceTitle "playchess.com"]
[Source "ChessBase"]
[SourceQuality "1"]
[TimeControl "40/5400+30:1800+30"]

1. e4 {[%emt 0:00:03]} c5 {[%emt 0:00:23]} 2. c3 {[%emt 0:00:19]} d5 {[%emt 0:00:05]} 3. exd5 {[%emt 0:00:05]} Qxd5 {[%emt 0:00:03]} 4. d4 {[%emt 0:00:08]} e6 {[%emt 0:00:11]} 5. Nf3 {[%emt 0:00:34]} Nf6 {[%emt 0:00:49]} 6. Nbd2 {[%emt 0:02:53]} cxd4 {[%emt 0:01:38]} 7. Bc4 {[%emt 0:01:07]} Qd8 {[%emt 0:01:00]} 8. Nxd4 {[%emt 0:01:51]} Bc5 {[%emt 0:06:31]} 9. N2f3 {[%emt 0:08:26]} O-O {[%emt 0:01:23]} 10. O-O {[%emt 0:02:12]} Nbd7 {[%emt 0:04:41]} 11. Bxe6 {[%emt 0:11:42]} fxe6 {[%emt 0:00:04]} 12. Nxe6 {[%emt 0:00:09]} Qb6 {[%emt 0:00:35]} 13. Nxf8 {[%emt 0:00:18]} Nxf8 {[%emt 0:00:26]} 14. b4 {[%emt 0:12:37]} Be7 {[%emt 0:07:10]} 15. Re1 {[%emt 0:03:38]} Qc7 {[%emt 0:01:52]} 16. Qb3+ {[%emt 0:03:18]} Kh8 {[%emt 0:00:06]} 17. Bf4 {[%emt 0:14:43]} Qxf4 {[%emt 0:10:47]} 18. Rxe7 {[%emt 0:02:09]} Ng6 {[%emt 0:01:02]} 19. Re3 {[%emt 0:08:29]} Bd7 {[%emt 0:07:18]} 20. Rd1 {[%emt 0:06:16]} Re8 {[%emt 0:11:09]} 21. Rxe8+ {[%emt 0:05:27]} Bxe8 {[%emt 0:00:01]} 22. Qe6 {[%emt 0:03:47]} Qc7 {[%emt 0:01:12]} 23. Ng5 {[%emt 0:04:52]} h6 {[%emt 0:03:03]} 24. Ne4 {[%emt 0:00:41]} Nf4 {[%emt 0:05:14]} 25. Qd6 {[%emt 0:00:58]} Qxd6 {[%emt 0:00:55]} 26. Nxd6 {[%emt 0:00:08]} Bh5 {[%emt 0:01:37]} 27. Rd2 {[%emt 0:03:13]} b6 {[%emt 0:01:05]} 28. c4 {[%emt 0:01:05]} Kg8 {[%emt 0:01:55]} 29. Nc8 {[%emt 0:00:55]} Bf7 {[%emt 0:00:35]} 30. Rd8+ {[%emt 0:01:01]} Kh7 {[%emt 0:00:21]} 31. Nd6 {[%emt 0:00:54]} Be6 {[%emt 0:00:57]} 32. Ra8 {[%emt 0:00:30]} Nd3 {[%emt 0:01:21]} 33. a3 {[%emt 0:00:01]} Ne5 {[%emt 0:01:37]} 34. Rxa7 {[%emt 0:00:49]} Nxc4 {[%emt 0:00:44]} 35. Nxc4 {[%emt 0:00:24]} Bxc4 {[%emt 0:00:01]} 36. a4 {[%emt 0:00:25]} Nd5 {[%emt 0:01:58]} 37. Rb7 {[%emt 0:01:26]} Kg6 {[%emt 0:03:26]} 38. a5 {[%emt 0:00:31]} bxa5 {[%emt 0:00:05]} 39. bxa5 {[%emt 0:00:06]} Kf6 {[%emt 0:00:17]} 40. f3 {[%emt 0:00:44]} g6 {[%emt 0:00:48]} 41. Kf2 {[%emt 0:04:28]} Ke5 {[%emt 0:01:35]} 42. Rg7 {[%emt 0:01:40]} Bd3 {[%emt 0:01:07]} 43. a6 {[%emt 0:00:29]} Bxa6 {[%emt 0:54:53]} 44. Rxg6 {[%emt 0:00:24]} Nf6 {[%emt 0:00:00]} 45. Rxh6 {[%emt 0:00:23]} Bc8 {[%emt 0:00:00]} 46. Rh8 {[%emt 0:01:06]} Be6 {[%emt 0:00:00]} 47. g3 {[%emt 0:00:20]} Bd5 {[%emt 0:00:00]} 48. h4 {[%emt 0:00:50]} Bf7 {[%emt 0:00:00]} 49. g4 {[%emt 0:01:25]} Be6 {[%emt 0:00:00]} 50. Kg3 {[%emt 0:00:28]} Nd5 {[%emt 0:00:00]} 51. Rf8 {[%emt 0:03:01]} Kd6 {[%emt 0:00:00]} 52. h5 {[%emt 0:00:41]} Ke7 {[%emt 0:00:00]} 53. Ra8 {[%emt 0:01:19]} Nf6 {[%emt 0:00:00]} 54. Ra7+ {[%emt 0:00:12]} Kf8 {[%emt 0:00:00]} 55. Kf4 {[%emt 0:00:57]} Nd7 {[%emt 0:00:00]} 56. Kg5 {[%emt 0:01:19]} Kg8 {[%emt 0:00:00]} 57. f4 {[%emt 0:01:14]} Nf8 {[%emt 0:00:00]} 58. f5 {[%emt 0:03:32]} Bf7 {[%emt 0:00:00]} 59. Ra8 {[%emt 0:01:01]} 1-0

[Event "Niedersachsen-ch B 2024"]
[Site "Verden Aller"]
[Date "2024.01.06"]
[Round "5.2"]
[White "Richter, Silas"]
[Black "Spieker, Hans-Joachim"]
[Result "1-0"]
[ECO "B75"]
[WhiteElo "1614"]
[BlackElo "1719"]
[Annotator "NA RC"]
[PlyCount "49"]
[EventDate "2024.01.01"]
[EventType "swiss"]
[EventCountry "GER"]
[SourceTitle "playchess.com"]
[Source "ChessBase"]
[SourceQuality "1"]
[TimeControl "40/5400+30:1800+30"]

1. e4 {[%emt 0:00:02]} c5 {[%emt 0:00:00]} 2. Nf3 {[%emt 0:00:05]} Nc6 {[%emt 0:00:04]} 3. d4 {[%emt 0:00:04]} cxd4 {[%emt 0:00:04]} 4. Nxd4 {[%emt 0:00:02]} g6 {[%emt 0:00:06]} 5. Nc3 {[%emt 0:00:18]} Bg7 {[%emt 0:00:07]} 6. Be3 {[%emt 0:00:02]} Nf6 {[%emt 0:00:06]} 7. f3 {[%emt 0:00:23]} d6 {[%emt 0:01:03]} 8. Qd2 {[%emt 0:00:06]} Bd7 {[%emt 0:00:17]} 9. O-O-O {[%emt 0:00:18]} Rc8 {[%emt 0:00:46]} 10. Kb1 {[%emt 0:00:42]} Nxd4 {[%emt 0:01:22]} 11. Bxd4 {[%emt 0:00:06]} O-O {[%emt 0:00:11]} 12. g4 {[%emt 0:00:06]} a6 {[%emt 0:01:10]} 13. h4 {[%emt 0:00:10]} h5 {[%emt 0:01:53]} 14. gxh5 {[%emt 0:01:00]} Nxh5 {[%emt 0:01:46]} 15. Bxg7 {[%emt 0:00:06]} Kxg7 {[%emt 0:00:12]} 16. f4 {[%emt 0:00:23]} Bg4 {[%emt 0:04:47]} 17. Re1 {[%emt 0:00:11]} e5 {[%emt 0:02:54]} 18. Rg1 {[%emt 0:00:26]} Qxh4 {[%emt 0:03:09]} 19. f5 {[%emt 0:04:33]} Nf4 {[%emt 0:01:29]} 20. Be2 {[%emt 0:02:30]} Bxe2 {[%emt 0:03:48]} 21. Nxe2 {[%emt 0:00:07]} Nxe2 {[%emt 0:01:48]} 22. Rxe2 {[%emt 0:01:44]} Qf6 {[%emt 0:02:55]} 23. Rf2 {[%emt 0:02:25]} Qh4 {[%emt 0:03:15]} 24. Rh2 {[%emt 0:01:59]} Qf4 {[%emt 0:00:25]} 25. f6+ {[%emt 0:00:11]} 1-0

[Event "Niedersachsen-ch B 2024"]
[Site "Verden Aller"]
[Date "2024.01.06"]
[Round "5.3"]
[White "Goes, Carsten"]
[Black "Schoettker, Jochen"]
[Result "1-0"]
[ECO "C02"]
[WhiteElo "1676"]
[BlackElo "1875"]
[Annotator "NA RC"]
[PlyCount "83"]
[EventDate "2024.01.01"]
[EventType "swiss"]
[EventCountry "GER"]
[SourceTitle "playchess.com"]
[Source "ChessBase"]
[SourceQuality "1"]
[TimeControl "40/5400+30:1800+30"]

1. e4 {[%emt 0:00:07]} e6 {[%emt 0:00:10]} 2. d4 {[%emt 0:00:14]} d5 {[%emt 0:00:06]} 3. e5 {[%emt 0:01:34]} c5 {[%emt 0:00:24]} 4. c3 {[%emt 0:00:06]} Nc6 {[%emt 0:00:35]} 5. Nf3 {[%emt 0:00:10]} Qb6 {[%emt 0:00:21]} 6. a3 {[%emt 0:00:17]} c4 {[%emt 0:00:34]} 7. Nbd2 {[%emt 0:01:07]} Na5 {[%emt 0:00:44]} 8. Rb1 {[%emt 0:02:29]} Bd7 {[%emt 0:00:26]} 9. g3 {[%emt 0:04:32]} f6 {[%emt 0:02:36]} 10. h4 {[%emt 0:00:55]} O-O-O {[%emt 0:02:17]} 11. Bh3 {[%emt 0:02:14]} Be7 {[%emt 0:05:27]} 12. Qe2 {[%emt 0:08:01]} f5 {[%emt 0:01:39]} 13. O-O {[%emt 0:09:46]} Nh6 {[%emt 0:02:18]} 14. Re1 {[%emt 0:05:44]} Nf7 {[%emt 0:00:45]} 15. b3 {[%emt 0:01:19]} Qa6 {[%emt 0:17:07]} 16. bxc4 {[%emt 0:01:32]} Nxc4 {[%emt 0:04:47]} 17. Nxc4 {[%emt 0:00:46]} Qxc4 {[%emt 0:00:44]} 18. Qb2 {[%emt 0:01:35]} Qc7 {[%emt 0:03:06]} 19. c4 {[%emt 0:10:50]} Bc6 {[%emt 0:03:10]} 20. cxd5 {[%emt 0:02:20]} Rxd5 {[%emt 0:53:14]} 21. Bg2 {[%emt 0:04:18]} Rb5 {[%emt 0:00:00]} 22. Qa2 {[%emt 0:01:11]} Rxb1 {[%emt 0:00:00]} 23. Qxb1 {[%emt 0:00:02]} Rd8 {[%emt 0:00:00]} 24. Be3 {[%emt 0:00:35]} Qa5 {[%emt 0:00:00]} 25. Rc1 {[%emt 0:06:20]} Rd5 {[%emt 0:00:00]} 26. Ng5 {[%emt 0:03:37]} Bxg5 {[%emt 0:00:00]} 27. hxg5 {[%emt 0:03:24]} Rb5 {[%emt 0:00:00]} 28. Qa2 {[%emt 0:00:36]} Nd8 {[%emt 0:00:00]} 29. a4 {[%emt 0:02:44]} Rb4 {[%emt 0:00:00]} 30. Bxc6 {[%emt 0:03:32]} bxc6 {[%emt 0:00:00]} 31. Qe2 {[%emt 0:01:42]} Rxa4 {[%emt 0:00:00]} 32. Qh5 {[%emt 0:00:40]} h6 {[%emt 0:00:00]} 33. g6 {[%emt 0:04:17]} Ra1 {[%emt 0:00:00]} 34. Rxa1 {[%emt 0:00:44]} Qxa1+ {[%emt 0:00:00]} 35. Kg2 {[%emt 0:00:06]} Qb1 {[%emt 0:00:00]} 36. Bxh6 {[%emt 0:02:37]} Qe4+ {[%emt 0:00:00]} 37. Qf3 {[%emt 0:05:09]} Qxd4 {[%emt 0:00:00]} 38. Bxg7 {[%emt 0:00:50]} Qd7 {[%emt 0:00:00]} 39. Bf6 {[%emt 0:00:37]} a5 {[%emt 0:00:00]} 40. g7 {[%emt 0:02:38]} Qf7 {[%emt 0:00:00]} 41. Qc3 {[%emt 0:30:26]} a4 {[%emt 0:21:11]} 42. Qa5 {[%emt 0:00:38]} 1-0

[Event "Niedersachsen-ch B 2024"]
[Site "Verden Aller"]
[Date "2024.01.06"]
[Round "5.4"]
[White "Kesselhut, Pascal"]
[Black "Woellermann, Ludger"]
[Result "1/2-1/2"]
[ECO "B22"]
[WhiteElo "1425"]
[BlackElo "1829"]
[Annotator "NA RC"]
[PlyCount "53"]
[EventDate "2024.01.01"]
[EventType "swiss"]
[EventCountry "GER"]
[SourceTitle "playchess.com"]
[Source "ChessBase"]
[SourceQuality "1"]
[TimeControl "40/5400+30:1800+30"]

1. e4 {[%emt 0:00:03]} c5 {[%emt 0:00:21]} 2. c3 {[%emt 0:00:13]} Nf6 {[%emt 0:01:59]} 3. e5 {[%emt 0:01:12]} Nd5 {[%emt 0:00:42]} 4. Nf3 {[%emt 0:01:44]} Nc6 {[%emt 0:01:12]} 5. Bc4 {[%emt 0:02:16]} e6 {[%emt 0:05:22]} 6. O-O {[%emt 0:02:57]} Be7 {[%emt 0:04:35]} 7. d4 {[%emt 0:01:26]} cxd4 {[%emt 1:19:49]} 8. cxd4 {[%emt 0:04:51]} d6 {[%emt 0:00:00]} 9. Re1 {[%emt 0:07:26]} O-O {[%emt 0:01:00]} 10. Nc3 {[%emt 1:13:22]} Nxc3 {[%emt 0:00:00]} 11. bxc3 {[%emt 0:00:00]} d5 {[%emt 0:00:00]} 12. Bd3 {[%emt 0:00:00]} f6 {[%emt 0:00:00]} 13. exf6 {[%emt 0:00:00]} Bxf6 {[%emt 0:00:00]} 14. Qc2 {[%emt 0:00:00]} h6 {[%emt 0:00:00]} 15. Ne5 {[%emt 0:00:00]} Nxe5 {[%emt 0:00:00]} 16. dxe5 {[%emt 0:00:00]} Bg5 {[%emt 0:00:00]} 17. Bxg5 {[%emt 0:00:00]} Qxg5 {[%emt 0:00:00]} 18. Re3 {[%emt 0:00:00]} Rf4 {[%emt 0:00:00]} 19. Rae1 {[%emt 0:00:00]} Bd7 {[%emt 0:00:00]} 20. Rg3 {[%emt 0:00:00]} Rg4 {[%emt 0:00:00]} 21. Rxg4 {[%emt 0:00:00]} Qxg4 {[%emt 0:00:00]} 22. Qd2 {[%emt 0:00:00]} Rf8 {[%emt 0:00:00]} 23. Re3 {[%emt 0:00:00]} Ba4 {[%emt 0:00:00]} 24. Be2 {[%emt 0:00:00]} Qf5 {[%emt 0:00:00]} 25. Bd3 {[%emt 0:00:00]} Qg4 {[%emt 0:00:00]} 26. Be2 {[%emt 0:00:00]} Qf5 {[%emt 0:00:00]} 27. Bd3 {[%emt 0:08:30]} 1/2-1/2

[Event "Niedersachsen-ch B 2024"]
[Site "Verden Aller"]
[Date "2024.01.06"]
[Round "5.5"]
[White "Pac, Maksym"]
[Black "Walther, Jonas"]
[Result "1/2-1/2"]
[ECO "D00"]
[WhiteElo "1416"]
[BlackElo "1744"]
[Annotator "NA RC"]
[PlyCount "36"]
[EventDate "2024.01.01"]
[EventType "swiss"]
[EventCountry "GER"]
[SourceTitle "playchess.com"]
[Source "ChessBase"]
[SourceQuality "1"]
[TimeControl "40/5400+30:1800+30"]

1. d4 {[%emt 0:00:01]} Nf6 {[%emt 0:05:07]} 2. Nc3 {[%emt 0:00:21]} d5 {[%emt 0:01:05]} 3. Bf4 {[%emt 0:00:08]} e6 {[%emt 0:00:31]} 4. Nb5 {[%emt 0:00:39]} Bb4+ {[%emt 0:00:08]} 5. c3 {[%emt 0:00:04]} Ba5 {[%emt 0:00:04]} 6. e3 {[%emt 0:01:58]} a6 {[%emt 0:00:57]} 7. Na3 {[%emt 0:00:04]} O-O {[%emt 0:00:13]} 8. Nf3 {[%emt 0:00:44]} Nbd7 {[%emt 0:04:43]} 9. Be2 {[%emt 0:01:29]} Qe7 {[%emt 0:00:57]} 10. Nb1 {[%emt 0:02:31]} Ne4 {[%emt 0:09:44]} 11. O-O {[%emt 0:07:36]} g5 {[%emt 0:02:21]} 12. Bg3 {[%emt 0:02:39]} Nxg3 {[%emt 0:00:16]} 13. hxg3 {[%emt 0:01:37]} c6 {[%emt 0:01:19]} 14. c4 {[%emt 0:05:16]} dxc4 {[%emt 0:13:00]} 15. Bxc4 {[%emt 0:01:22]} b5 {[%emt 0:04:02]} 16. Be2 {[%emt 0:02:58]} Bb7 {[%emt 0:02:50]} 17. a3 {[%emt 0:03:40]} Bc7 {[%emt 0:02:20]} 18. Nbd2 {[%emt 0:12:22]} c5 {[%emt 0:03:57]} 1/2-1/2